bitfinex/quotes_BTCUSD_20250703
["timestamp","ask_amount","ask_price","bid_price","bid_amount"]
[1751550658528,0.20820056,110470.0,110460.0,0.2855067]
[1751550658725,0.20820056,110470.0,110460.0,0.00395571]
[1751550658726,1.09449458,110470.0,110460.0,0.00395571]
[1751550658937,1.21623151,110470.0,110460.0,0.00395571]
[1751550659133,0.19918457,110450.0,110440.0,0.0002]
[1751550659336,1.09449032,110450.0,110440.0,0.00843584]
[1751550659540,0.86491686,110450.0,110440.0,0.18952964]
[1751550659739,0.19918457,110450.0,110440.0,0.10892746]
[1751550659939,0.23850667,110450.0,110440.0,0.29907586]
[1751550660143,0.42863761,110450.0,110440.0,0.29002126]
[1751550660391,0.19918473,110450.0,110440.0,0.00843584]
[1751550660614,0.19918473,110450.0,110440.0,0.18952964]
[1751550660814,0.22036,110450.0,110440.0,0.19858433]
[1751550661046,0.0181065,110450.0,110440.0,0.31918433]
[1751550661219,0.00905321,110450.0,110440.0,0.30107553]
[1751550661443,0.8649008,110460.0,110450.0,0.19918473]
[1751550661756,0.43757253,110460.0,110450.0,0.00825474]
[1751550661955,0.0181065,110450.0,110440.0,0.3018938]
[1751550662093,0.0181065,110450.0,110440.0,0.31014888]
[1751550662094,0.199184,110450.0,110440.0,0.31014888]
[1751550662484,1.0852007,110460.0,110440.0,0.30894832]
[1751550662688,0.22030098,110460.0,110450.0,0.21729156]
[1751550662891,0.23820601,110460.0,110450.0,0.21729156]
[1751550663104,0.4373727,110460.0,110450.0,0.1991849]
[1751550663339,0.19013103,110450.0,110440.0,0.0002]
[1751550663586,0.23152064,110430.0,110420.0,0.1]
[1751550663828,1.59030332,110430.0,110420.0,0.10827622]
[1751550664040,5.80409739,110430.0,110420.0,0.10827622]
[1751550664260,5.98524732,110430.0,110420.0,0.10827622]
[1751550664533,5.57279951,110420.0,110410.0,0.0002]
[1751550664766,5.55239153,110400.0,110390.0,0.0002]
[1751550664987,5.95852846,110400.0,110390.0,0.0002]
[1751550665223,0.53025168,110380.0,110370.0,0.00604323]
[1751550665442,5.97838229,110380.0,110370.0,0.00604323]
[1751550665663,5.88694536,110380.0,110370.0,0.00604323]
[1751550665880,1.64427436,110380.0,110370.0,0.00651487]
[1751550666105,5.97680617,110380.0,110370.0,0.00651487]
[1751550666341,0.199347,110360.0,110350.0,0.0002]
[1751550666567,1.30280668,110360.0,110350.0,0.0002]
[1751550666798,5.60803768,110360.0,110350.0,0.0002]
[1751550667022,0.93743275,110360.0,110350.0,0.0002]
[1751550667246,1.15737275,110360.0,110350.0,0.19956523]
[1751550667474,0.89225435,110360.0,110350.0,0.19050357]
[1751550667695,0.96704642,110360.0,110350.0,0.2176888]
[1751550667918,1.16739359,110360.0,110350.0,0.0002]
[1751550668134,1.15833292,110360.0,110350.0,0.19050357]
[1751550668351,0.98616842,110360.0,110350.0,0.2176888]
[1751550668564,1.1672335,110360.0,110350.0,0.2086273]
[1751550668792,0.70296842,110360.0,110350.0,0.21768896]
[1751550669024,0.70296842,110360.0,110350.0,0.20862747]
[1751550669025,1.167234,110360.0,110350.0,0.20862747]
[1751550669259,1.17629525,110360.0,110350.0,0.21768929]
[1751550669511,1.15817325,110360.0,110350.0,0.0002]
[1751550669733,1.19668121,110360.0,110350.0,0.0002]
[1751550669966,1.15817325,110360.0,110350.0,0.0002]
[1751550670198,1.15817325,110360.0,110350.0,0.20862673]
[1751550670199,0.001,110360.0,110350.0,0.20862673]
[1751550670447,0.01006051,110360.0,110350.0,0.30006366]
[1751550670674,0.01912127,110360.0,110350.0,0.30006366]
[1751550670893,0.001,110360.0,110350.0,0.30006366]
[1751550671109,0.003,110360.0,110350.0,0.33236366]
[1751550671991,0.01206051,110360.0,110350.0,0.33236366]
[1751550672266,0.03924327,110360.0,110350.0,0.27846382]
[1751550672498,0.96856985,110360.0,110350.0,0.09143693]
[1751550672723,0.96856985,110360.0,110340.0,0.19051981]
[1751550672724,0.19030341,110350.0,110340.0,0.0002]
[1751550672933,1.14764916,110350.0,110340.0,0.0002]
[1751550673371,0.00906174,110350.0,110340.0,0.20864513]
[1751550673618,0.49090713,110350.0,110340.0,0.19052082]
[1751550673827,0.48184506,110350.0,110340.0,0.19958355]
[1751550674032,0.30032324,110350.0,110340.0,0.2086462]
[1751550674245,0.49968864,110350.0,110340.0,0.21770876]
[1751550674454,0.30938515,110350.0,110340.0,0.22777124]
[1751550674673,0.87413308,110360.0,110350.0,0.19936539]
[1751550674882,0.30036127,110360.0,110350.0,0.2176888]
[1751550675095,0.30922227,110360.0,110350.0,0.2176888]
[1751550675310,0.25278899,110370.0,110360.0,0.19028616]
[1751550675524,0.01858812,110380.0,110370.0,0.2083892]
[1751550675738,0.01858779,110380.0,110370.0,0.30888598]
[1751550675955,0.00046981,110380.0,110370.0,0.30888598]
[1751550676187,0.00046981,110380.0,110370.0,0.68118598]
[1751550676619,0.00046981,110380.0,110370.0,0.71238598]
[1751550676850,0.00046981,110380.0,110370.0,0.68118598]
[1751550677097,0.00046981,110380.0,110370.0,0.72692683]
[1751550677541,0.00046981,110380.0,110370.0,0.68118598]
[1751550677760,0.00046981,110380.0,110370.0,0.68518598]
[1751550678246,0.00046981,110380.0,110370.0,0.73402683]
[1751550678464,0.00046981,110380.0,110370.0,0.68818598]
[1751550680141,0.00046981,110380.0,110370.0,0.71978598]
[1751550680388,0.24372515,110420.0,110400.0,0.1902173]
[1751550680630,0.00905641,110410.0,110400.0,0.20833176]
[1751550680870,0.61195637,110420.0,110410.0,0.19925722]
[1751550681109,0.60290029,110420.0,110410.0,0.28163709]
[1751550681354,0.19019999,110410.0,110400.0,0.18115942]
[1751550681591,0.19927527,110400.0,110390.0,0.19023453]
[1751550681829,0.19927527,110400.0,110390.0,0.29073025]
[1751550682082,0.01811782,110380.0,110370.0,0.43210913]
[1751550682302,0.18115942,110400.0,110390.0,0.19023445]
[1751550682530,0.18115942,110400.0,110380.0,0.19039325]
[1751550682531,0.19021706,110400.0,110380.0,0.19039325]
[1751550682741,0.03623334,110390.0,110380.0,0.53770722]
[1751550682958,0.0090578,110400.0,110380.0,0.52864794]
[1751550683185,0.1992751,110400.0,110390.0,0.19929316]
[1751550683674,0.1912173,110400.0,110390.0,0.19929316]
[1751550683914,0.19929307,110390.0,110380.0,0.09157833]
[1751550684138,0.87407882,110390.0,110380.0,0.0001414]
[1751550684366,1.00908289,110390.0,110380.0,0.0001414]
[1751550684623,5.68741389,110390.0,110380.0,0.0001414]
[1751550685043,5.64926864,110390.0,110380.0,0.0001414]
[1751550685256,1.31093764,110390.0,110380.0,0.0001414]
[1751550685705,1.23822028,110390.0,110380.0,0.0001414]
[1751550686138,0.70798575,110390.0,110380.0,0.19039317]
[1751550686356,0.00905821,110390.0,110380.0,0.3090076]
[1751550686575,0.01811667,110390.0,110380.0,0.3090076]
[1751550686822,0.00905821,110390.0,110380.0,0.5289276]
[1751550687049,0.00905723,110400.0,110390.0,0.21740966]
[1751550687350,0.19925673,110410.0,110400.0,0.18115942]
[1751550687558,0.22644712,110400.0,110390.0,0.29072959]
[1751550687775,0.03622982,110400.0,110390.0,0.30884676]
[1751550687996,0.00905674,110410.0,110400.0,0.21738964]
[1751550688251,0.21737028,110410.0,110400.0,0.09143693]
[1751550688491,0.19925705,110410.0,110400.0,0.31095693]
[1751550688902,0.19925705,110410.0,110400.0,0.50117415]
[1751550689651,0.21737029,110410.0,110400.0,0.51023187]
[1751550689868,0.19925706,110410.0,110400.0,0.31095693]
[1751550690074,0.20125706,110410.0,110400.0,0.31095693]
[1751550690286,0.20325706,110410.0,110400.0,0.50117432]
[1751550690503,0.02717053,110410.0,110400.0,0.52834723]
[1751550690740,0.2430066,110420.0,110410.0,0.20831338]
[1751550690741,0.07093592,110420.0,110410.0,0.20831338]
[1751550691004,0.87402484,110420.0,110410.0,0.09143693]
[1751550691232,0.20833274,110400.0,110390.0,0.19929275]
[1751550691494,0.20833274,110400.0,110390.0,0.51088992]
[1751550691495,0.22644826,110400.0,110390.0,0.51088992]
[1751550691711,0.03623137,110400.0,110390.0,0.51994838]
[1751550691922,0.20833307,110400.0,110390.0,0.51978838]
[1751550692130,0.20833307,110400.0,110390.0,0.53790505]
[1751550692339,0.01811528,110400.0,110390.0,0.53790464]
[1751550692591,0.0004,110410.0,110400.0,0.20833233]
[1751550692824,0.21777078,110410.0,110400.0,0.29976943]
[1751550693036,0.03662711,110410.0,110400.0,0.30882682]
[1751550693477,0.0004,110410.0,110400.0,0.30982682]
[1751550693695,0.0004,110410.0,110400.0,0.34132682]
[1751550693910,0.00945641,110410.0,110400.0,0.34132682]
[1751550694129,0.01851306,110410.0,110400.0,0.56084682]
[1751550694338,0.0004,110410.0,110400.0,0.56084682]
[1751550694822,0.0004,110410.0,110400.0,0.56184682]
[1751550695029,0.0004,110410.0,110400.0,0.94688767]
[1751550695474,0.0004,110410.0,110400.0,0.91638767]
[1751550695696,0.0004,110410.0,110400.0,0.90168682]
[1751550696133,0.0004,110410.0,110400.0,0.93208682]
[1751550696376,0.0004,110410.0,110400.0,0.94962767]
[1751550697241,0.0004,110410.0,110400.0,0.72926767]
[1751550697461,0.0004,110410.0,110400.0,0.94834767]
[1751550697684,0.0004,110410.0,110400.0,0.95034767]
[1751550698335,0.0004,110410.0,110400.0,1.62513342]
[1751550698611,1e-08,110410.0,110400.0,1.62513342]
[1751550698833,1e-08,110410.0,110400.0,1.67513342]
[1751550699727,1e-08,110410.0,110400.0,1.67213342]
[1751550700152,1e-08,110410.0,110400.0,1.70535442]
[1751550700375,1e-08,110410.0,110400.0,1.70335442]
[1751550700789,1e-08,110410.0,110400.0,1.70735442]
[1751550701457,1e-08,110410.0,110400.0,0.81348867]
[1751550701696,1e-08,110410.0,110400.0,0.76348867]
[1751550701942,1e-08,110410.0,110400.0,0.69032682]
[1751550702156,1e-08,110410.0,110400.0,0.90936682]
[1751550702642,1e-08,110410.0,110400.0,0.92390767]
[1751550703308,1e-08,110410.0,110400.0,1.63089342]
[1751550703523,1e-08,110410.0,110400.0,1.62689342]
[1751550703739,1e-08,110410.0,110400.0,0.69486767]
[1751550703954,1e-08,110410.0,110400.0,0.91590767]
[1751550704173,1e-08,110410.0,110400.0,1.62269342]
[1751550704384,1e-08,110410.0,110400.0,1.61869342]
[1751550704818,1e-08,110410.0,110400.0,0.91390767]
[1751550705054,1e-08,110410.0,110400.0,0.92090767]
[1751550705275,1e-08,110410.0,110400.0,0.87186682]
[1751550705744,0.37041788,110450.0,110440.0,0.20825687]
[1751550705745,0.1004,110450.0,110440.0,0.20825687]
[1751550705975,1e-08,110460.0,110450.0,0.61153802]
[1751550706232,0.03586371,110510.0,110490.0,0.20814762]
[1751550706233,0.04519654,110510.0,110490.0,0.20814762]
[1751550706449,0.04519654,110510.0,110480.0,0.19913048]
[1751550706450,0.0180988,110500.0,110480.0,0.19913048]
[1751550706666,0.23977919,110510.0,110490.0,0.40001185]
[1751550706889,0.01809855,110500.0,110490.0,0.40001185]
[1751550707120,0.73405609,110510.0,110500.0,0.18099547]
[1751550707346,0.04121877,110510.0,110500.0,0.19004516]
[1751550707588,0.00047039,110510.0,110500.0,0.21719332]
[1751550707811,0.00047039,110510.0,110500.0,0.89197907]
[1751550708025,0.00047039,110510.0,110500.0,1.27971992]
[1751550708246,0.00047039,110510.0,110500.0,0.24134412]
[1751550708470,0.00047039,110510.0,110500.0,0.4273038]
[1751550708897,0.0095186,110510.0,110500.0,0.2081438]
[1751550709333,0.0095186,110510.0,110500.0,0.20814437]
[1751550709579,0.00047039,110510.0,110500.0,0.22624293]
[1751550709804,0.00147039,110510.0,110500.0,1.28796953]
[1751550710294,0.13568102,110550.0,110540.0,0.20806848]
[1751550710510,0.09981731,110550.0,110540.0,0.42726848]
[1751550710720,0.07285844,110550.0,110540.0,0.42726848]
[1751550711790,0.00014108,110550.0,110540.0,0.42726848]
[1751550712014,0.00014108,110550.0,110540.0,0.51870541]
[1751550713108,0.00214108,110550.0,110540.0,1.57863201]
[1751550713327,0.00214108,110550.0,110540.0,1.57835201]
[1751550713545,0.0004,110570.0,110560.0,0.20803084]
[1751550713758,0.0004,110570.0,110560.0,0.51638777]
[1751550714016,0.0004,110570.0,110560.0,1.19117352]
[1751550714232,0.0094433,110570.0,110560.0,0.29746777]
[1751550714448,0.00944339,110570.0,110560.0,0.50025896]
[1751550714698,0.19898679,110560.0,110550.0,0.21888]
[1751550714915,0.19898679,110560.0,110520.0,0.18093534]
[1751550714916,0.20806938,110540.0,110520.0,0.18093534]
[1751550715136,0.21713379,110530.0,110520.0,0.18998331]
[1751550715360,0.21713444,110530.0,110520.0,0.54821992]
[1751550715567,0.0361881,110530.0,110520.0,0.85853685]
[1751550715782,0.0180934,110530.0,110520.0,0.86758441]
[1751550715998,0.01809241,110540.0,110530.0,0.20808754]
[1751550716209,0.19900455,110550.0,110540.0,0.19902272]
[1751550716439,0.20804965,110550.0,110540.0,0.29045965]
[1751550716659,0.02713596,110550.0,110540.0,0.52743174]
[1751550716899,0.01809037,110550.0,110540.0,0.52743174]
[1751550717113,0.00904494,110550.0,110540.0,0.51838484]
[1751550717339,0.01808947,110560.0,110550.0,0.20804965]
[1751550717629,0.19898672,110560.0,110550.0,0.28139613]
[1751550717837,0.19898672,110560.0,110550.0,0.29948691]
[1751550718047,0.01808898,110560.0,110550.0,0.30853218]
[1751550718265,0.02713376,110560.0,110550.0,0.30853218]
[1751550718518,0.02713376,110560.0,110550.0,0.31757728]
[1751550718738,0.21707587,110560.0,110550.0,0.30853218]
[1751550718959,0.01808939,110560.0,110550.0,0.29044148]
[1751550719173,0.01808898,110560.0,110550.0,0.29948658]
[1751550719392,0.00904412,110560.0,110550.0,0.29948658]
[1751550719613,0.00944363,110570.0,110560.0,0.18994203]
[1751550719837,0.19936839,110570.0,110560.0,0.31027693]
[1751550720053,0.0004,110570.0,110560.0,0.5183081]
[1751550720286,0.00944347,110570.0,110560.0,0.52735238]
[1751550720512,0.03657453,110570.0,110560.0,0.52735238]
[1751550720715,0.20841235,110570.0,110560.0,0.50926382]
[1751550720926,0.02753147,110570.0,110560.0,0.52735263]
[1751550721138,0.02753147,110570.0,110560.0,0.52835263]
[1751550721378,0.20841235,110570.0,110560.0,0.52835272]
[1751550721600,0.20841235,110570.0,110560.0,0.51830835]
[1751550721816,0.20841235,110570.0,110560.0,0.09143693]
[1751550722031,0.89731059,110570.0,110560.0,0.31023693]
[1751550722260,0.22252484,110570.0,110560.0,0.31023693]
[1751550722494,0.22252484,110570.0,110560.0,0.2188]
[1751550723167,0.22252484,110570.0,110560.0,0.41778656]
[1751550723384,0.01848702,110570.0,110560.0,0.51826777]
[1751550723625,0.00944347,110570.0,110560.0,0.51826777]
[1751550723834,0.20841202,110570.0,110560.0,0.50017896]
[1751550724063,0.22312484,110570.0,110560.0,0.1079132]
[1751550724290,0.22312484,110570.0,110560.0,0.21876]
[1751550724532,0.01809029,110550.0,110540.0,0.21711465]
[1751550724782,0.1990039,110550.0,110540.0,0.53473022]
[1751550724980,0.22960439,110550.0,110540.0,0.32666149]
[1751550725237,0.22960439,110550.0,110540.0,0.10790149]
[1751550725455,0.22960439,110550.0,110540.0,0.32666149]
[1751550725664,0.23864998,110550.0,110540.0,0.53473005]
[1751550725869,0.23864998,110550.0,110540.0,0.52668405]
[1751550726380,0.19900471,110550.0,110540.0,0.32766149]
[1751550726609,0.19900471,110550.0,110540.0,0.52668429]
[1751550726880,0.19900471,110550.0,110540.0,0.53573054]
[1751550727085,0.1899592,110550.0,110540.0,0.51763796]
[1751550727302,0.01809037,110550.0,110540.0,0.52668388]
[1751550727508,0.22614035,110550.0,110540.0,0.5176378]
[1751550727740,0.0361818,110550.0,110540.0,0.52668405]
[1751550727955,0.21709541,110550.0,110540.0,0.53473005]
[1751550728189,0.032,110570.0,110560.0,0.02713359]
[1751550728408,0.21745582,110570.0,110560.0,0.42675093]
[1751550728614,0.03657494,110570.0,110560.0,0.42675093]
[1751550728828,0.20841186,110570.0,110560.0,0.51818786]
[1751550729109,0.0184871,110570.0,110560.0,0.5346315]
[1751550729325,0.02753089,110570.0,110560.0,0.53462628]
[1751550729540,0.0184871,110570.0,110560.0,0.53462628]
[1751550729759,0.01848694,110570.0,110560.0,0.53462628]
[1751550730000,0.03657445,110570.0,110560.0,0.53462628]
[1751550730225,0.03657445,110570.0,110560.0,0.525582]
[1751550730439,0.03657445,110570.0,110560.0,0.54367065]
[1751550730657,0.02753057,110570.0,110560.0,0.54367065]
[1751550730864,0.02753073,110570.0,110560.0,0.54367065]
[1751550731081,0.00944339,110570.0,110560.0,0.54367065]
[1751550731301,0.0275309,110570.0,110560.0,0.54367065]
[1751550731526,0.03657486,110570.0,110560.0,0.53462637]
[1751550731748,0.23026872,110570.0,110560.0,0.51649755]
[1751550731967,0.04938751,110570.0,110560.0,0.51814835]
[1751550732179,0.04938751,110570.0,110560.0,0.54363165]
[1751550732180,0.23931243,110570.0,110560.0,0.54363165]
[1751550732399,0.2302688,110570.0,110560.0,0.53458728]
[1751550732670,0.01848751,110570.0,110560.0,0.55267626]
[1751550733028,0.02753114,110570.0,110560.0,0.54363171]
[1751550733109,0.03657494,110570.0,110560.0,0.55267571]
[1751550733324,0.02753098,110570.0,110560.0,0.55267571]
[1751550733536,0.02753089,110570.0,110560.0,0.55267571]
[1751550733984,0.02753089,110570.0,110560.0,0.52719255]
[1751550734208,0.04561889,110570.0,110560.0,0.55269174]
[1751550734420,0.04561889,110570.0,110560.0,0.55269124]
[1751550734642,0.04561889,110570.0,110560.0,0.54364696]
[1751550734867,0.19936888,110570.0,110560.0,0.01645482]
[1751550735086,0.23028623,110560.0,110550.0,0.18091144]
[1751550735301,0.23028623,110560.0,110550.0,0.53460034]
[1751550735302,0.24837521,110560.0,110550.0,0.53460034]
[1751550735518,0.23933035,110560.0,110550.0,0.53460034]
[1751550735730,0.23933092,110560.0,110550.0,0.52555507]
[1751550735940,0.23028655,110560.0,110550.0,0.52555515]
[1751550736158,0.68012288,110560.0,110550.0,0.52555523]
[1751550736371,0.01808914,110560.0,110550.0,0.55269111]
[1751550736583,0.21707603,110560.0,110550.0,0.54364601]
[1751550736810,0.18128088,110570.0,110550.0,0.51812376]
[1751550737055,0.0184871,110570.0,110560.0,0.20803067]
[1751550737280,0.00944347,110570.0,110560.0,0.2994676]
[1751550737505,0.0004,110570.0,110560.0,0.2994676]
[1751550737729,0.01848702,110570.0,110560.0,0.2994676]
[1751550737935,0.0004,110570.0,110560.0,0.31594988]
[1751550738155,0.0094433,110570.0,110560.0,0.31594988]
[1751550738763,0.02753064,110570.0,110560.0,0.31594988]
[1751550738928,0.02753064,110570.0,110560.0,0.29786115]
[1751550738929,0.20841144,110570.0,110560.0,0.29786115]
[1751550739127,0.23066855,110570.0,110560.0,0.31003693]
[1751550739360,0.20803093,110560.0,110550.0,0.20804773]
[1751550739722,0.03617779,110560.0,110550.0,0.54358171]
[1751550740247,0.0271331,110560.0,110550.0,0.54358171]
[1751550740460,0.65786741,110560.0,110550.0,0.01649195]
[1751550740731,5.72741628,110560.0,110550.0,0.001]
[1751550740947,0.23122239,110540.0,110530.0,0.21852]
[1751550741164,0.21713396,110530.0,110520.0,0.43580862]
[1751550741399,0.03618762,110530.0,110520.0,0.55280635]
[1751550741605,0.22618127,110530.0,110520.0,0.54375879]
[1751550741804,0.22618127,110530.0,110520.0,0.55280643]
[1751550742012,0.21713469,110530.0,110520.0,0.33428643]
[1751550742187,0.20808787,110530.0,110520.0,0.52566327]
[1751550742404,0.20808787,110530.0,110520.0,0.51819792]
[1751550742816,0.22089365,110530.0,110520.0,0.3996238]
[1751550743018,0.22047647,110540.0,110520.0,0.5091565]
[1751550743215,0.2080877,110530.0,110520.0,0.5091565]
[1751550743432,0.21713444,110530.0,110520.0,0.525678]
[1751550743640,0.01809405,110530.0,110520.0,0.53472547]
[1751550743846,0.21142998,110540.0,110530.0,0.20808754]
[1751550743847,0.19902248,110540.0,110530.0,0.20808754]
[1751550744061,0.01809209,110540.0,110530.0,0.32509262]
[1751550744267,0.21711481,110540.0,110530.0,0.30699906]
[1751550744491,0.21711481,110540.0,110530.0,0.31604596]
[1751550744684,0.21711481,110540.0,110530.0,0.30699906]
[1751550744813,0.19902272,110540.0,110530.0,0.10795834]
[1751550745021,1.03083564,110540.0,110530.0,0.01652141]
[1751550745440,0.18999349,110530.0,110520.0,0.21862108]
[1751550745684,0.89806948,110530.0,110520.0,0.235156]
[1751550745910,0.93076948,110530.0,110520.0,0.016676]
[1751550746117,5.47743741,110530.0,110520.0,0.016676]
[1751550746344,4.80146142,110530.0,110520.0,0.00014108]
[1751550746493,5.47743741,110530.0,110520.0,0.00014108]
[1751550746694,1.23069122,110530.0,110520.0,0.00014108]
[1751550746900,1.17220641,110530.0,110520.0,0.00014108]
[1751550747302,1.08076948,110530.0,110520.0,0.00014108]
[1751550747503,0.23114056,110530.0,110520.0,0.00014108]
[1751550747705,0.22209349,110530.0,110520.0,0.00014108]
[1751550747911,0.22209349,110530.0,110520.0,0.1811038]
[1751550748114,0.18999349,110530.0,110520.0,0.41767982]
[1751550748377,0.19199349,110530.0,110520.0,0.21862108]
[1751550749042,0.90066948,110530.0,110520.0,0.00014108]
[1751550749295,0.96836183,110530.0,110520.0,0.00014108]
[1751550750142,0.90066948,110530.0,110520.0,0.00014108]
[1751550750353,0.22469349,110530.0,110520.0,0.00014108]
[1751550752081,0.19199349,110530.0,110520.0,0.00014108]
[1751550752506,0.22239349,110530.0,110520.0,0.00014108]
[1751550754062,0.19199349,110530.0,110520.0,0.00014108]
[1751550754277,0.18294634,110530.0,110520.0,0.00014108]
[1751550754483,0.21584634,110530.0,110520.0,0.00014108]
[1751550755116,0.18294634,110530.0,110520.0,0.1811038]
[1751550755328,0.18294634,110530.0,110520.0,0.00014108]
[1751550755546,0.18294634,110530.0,110520.0,0.1811038]
[1751550755754,0.18294634,110530.0,110520.0,0.19015193]
[1751550756020,0.002,110530.0,110520.0,0.1811038]
[1751550756233,0.0200934,110530.0,110520.0,0.51804414]
[1751550756437,0.0200934,110530.0,110520.0,0.51800414]
[1751550756654,0.002,110530.0,110520.0,0.51800414]
[1751550757275,0.02009356,110530.0,110520.0,0.51800414]
[1751550757486,0.02009356,110530.0,110520.0,0.52100414]
[1751550757698,0.02009356,110530.0,110520.0,0.52096414]
[1751550757901,0.0200934,110530.0,110520.0,0.52096414]
[1751550758120,0.002,110530.0,110520.0,0.47192686]
[1751550758336,0.002,110530.0,110520.0,0.50222686]
[1751550758604,0.01,110540.0,110530.0,0.2080873]
[1751550758845,0.01904584,110540.0,110530.0,0.29952423]
[1751550759068,0.01,110540.0,110530.0,0.29952423]
[1751550759301,0.01904584,110540.0,110530.0,0.29952423]
[1751550759523,0.02809184,110540.0,110530.0,0.29952423]
[1751550759757,0.01,110540.0,110530.0,0.29952423]
[1751550759995,0.01,110540.0,110530.0,0.36112423]
[1751550760220,0.011,110540.0,110530.0,0.36212423]
[1751550760447,0.011,110540.0,110530.0,0.33082423]
[1751550760663,0.011,110540.0,110530.0,0.54902423]
[1751550761000,0.011,110540.0,110530.0,0.54802423]
[1751550761208,0.01,110540.0,110530.0,0.32982423]
[1751550761412,0.01,110540.0,110530.0,0.55202423]
[1751550761615,0.01,110540.0,110530.0,0.55102423]
[1751550762242,0.01,110540.0,110530.0,0.58142423]
[1751550763119,0.01,110540.0,110530.0,0.58642423]
[1751550763833,0.01,110540.0,110530.0,0.29847749]
[1751550763834,0.01904592,110540.0,110530.0,0.29847749]
[1751550764050,0.028092,110540.0,110530.0,0.30752431]
[1751550764256,0.0461845,110540.0,110530.0,0.53469105]
[1751550764497,0.20902272,110540.0,110530.0,0.008]
[1751550764748,0.38435694,110540.0,110530.0,0.008]
[1751550764976,0.20810589,110520.0,110510.0,0.19002776]
[1751550765186,0.19001069,110520.0,110510.0,0.40810784]
[1751550765430,0.19001069,110520.0,110510.0,0.41715663]
[1751550765838,0.19001069,110520.0,110510.0,0.43525395]
[1751550766055,0.19001069,110520.0,110510.0,0.40806784]
[1751550766261,0.19001069,110520.0,110510.0,0.41711671]
[1751550766686,0.19002804,110510.0,110500.0,0.19929376]
[1751550766904,0.00904862,110510.0,110500.0,0.52686908]
[1751550767134,0.18096272,110520.0,110510.0,0.20812536]
[1751550767135,0.20810654,110520.0,110510.0,0.20812536]
[1751550767604,0.0180943,110530.0,110520.0,0.18096272]
[1751550767818,0.20808779,110530.0,110520.0,0.41705874]
[1751550768479,0.20808779,110530.0,110520.0,0.42610663]
[1751550768714,0.20808779,110530.0,110520.0,0.41705874]
[1751550768935,0.19904072,110530.0,110520.0,0.41705874]
[1751550769170,0.18194634,110530.0,110510.0,0.18097909]
[1751550769401,0.22917666,110510.0,110500.0,0.0002]
[1751550769634,4.65774459,110510.0,110500.0,0.0002]
[1751550769855,4.73046195,110510.0,110500.0,0.0002]
[1751550770077,0.22917666,110510.0,110500.0,0.0002]
[1751550770954,0.0301,110510.0,110500.0,0.2083438]
[1751550771178,0.01809667,110510.0,110500.0,0.19929411]
[1751550771401,0.00904821,110510.0,110500.0,0.41721411]
[1751550771620,0.19001069,110520.0,110510.0,0.19707674]
[1751550771621,0.19905841,110520.0,110510.0,0.19707674]
[1751550771869,0.19001069,110520.0,110510.0,0.19002804]
[1751550772092,0.02714561,110510.0,110500.0,0.42626322]
[1751550772503,0.02914545,110510.0,110500.0,0.42726322]
[1751550772922,0.02714562,110510.0,110500.0,0.42726322]
[1751550773115,0.03619449,110510.0,110500.0,0.42726322]
[1751550773322,0.01809683,110510.0,110500.0,0.42726322]
[1751550773532,0.02714562,110510.0,110500.0,0.42726322]
[1751550773752,0.01809683,110510.0,110500.0,0.42726322]
[1751550773967,0.01809675,110510.0,110500.0,0.42726322]
[1751550774141,0.02714529,110510.0,110500.0,0.42726322]
[1751550774347,0.2081067,110520.0,110510.0,0.19907642]
[1751550774942,0.01809536,110520.0,110510.0,0.19907642]
[1751550775151,0.01809733,110510.0,110500.0,0.45583824]
[1751550775339,0.20812529,110510.0,110500.0,0.53822589]
[1751550775710,0.21717424,110510.0,110500.0,0.19929459]
[1751550775924,0.19907691,110510.0,110500.0,0.218]
[1751550776130,0.19907691,110510.0,110500.0,0.41709443]
[1751550776348,0.19907691,110510.0,110500.0,0.40804507]
[1751550776556,0.19907691,110510.0,110500.0,0.218]
[1751550776775,0.19907691,110510.0,110500.0,0.0032]
[1751550776776,0.37259823,110510.0,110500.0,0.0032]
[1751550776990,0.46403516,110510.0,110500.0,0.0032]
[1751550777440,0.46403516,110510.0,110500.0,0.0062]
[1751550777657,0.53584234,110510.0,110500.0,0.0062]
[1751550777878,0.46312498,110510.0,110500.0,0.0032]
[1751550778094,0.33414102,110510.0,110500.0,0.0032]
[1751550778339,0.33514102,110510.0,110500.0,0.0032]
[1751550778555,0.24370409,110510.0,110500.0,0.0002]
[1751550778829,0.19005391,110500.0,110490.0,0.18101049]
[1751550779015,0.19005391,110500.0,110490.0,0.190061]
[1751550779693,0.19910343,110500.0,110490.0,0.19911159]
[1751550780138,0.2081998,110500.0,110490.0,0.21721235]
[1751550780372,0.2081998,110500.0,110490.0,0.22626261]
[1751550780590,0.19006236,110490.0,110480.0,0.21532932]
[1751550780825,0.18105123,110500.0,110490.0,0.18101185]
[1751550781055,0.00909612,110500.0,110490.0,0.20816321]
[1751550781271,0.02719508,110500.0,110490.0,0.21721322]
[1751550781606,0.04529405,110500.0,110490.0,0.21721322]
[1751550781809,0.22628952,110500.0,110490.0,0.20816321]
[1751550782019,0.19911246,110490.0,110480.0,0.56055143]
[1751550782236,0.19911246,110490.0,110480.0,0.54173221]
[1751550782449,0.02715103,110490.0,110480.0,0.25412147]
[1751550782676,0.21721273,110490.0,110480.0,0.25412164]
[1751550782885,0.03620071,110490.0,110480.0,0.23659794]
[1751550783102,0.18104248,110500.0,110490.0,0.19911278]
[1751550783103,0.20819113,110500.0,110490.0,0.19911278]
[1751550783332,0.01814548,110500.0,110490.0,0.21721305]
[1751550783564,0.19911245,110490.0,110480.0,0.29256708]
[1751550783776,0.20816304,110490.0,110480.0,0.002]
[1751550784032,0.23111286,110490.0,110480.0,0.002]
[1751550784257,0.32219286,110490.0,110480.0,0.00831229]
[1751550784487,0.63634715,110490.0,110480.0,0.00831229]
[1751550784691,0.72778408,110490.0,110480.0,0.003]
[1751550784857,0.72778408,110490.0,110480.0,0.006]
[1751550785100,0.65506672,110490.0,110480.0,0.003]
[1751550785306,0.19007948,110480.0,110470.0,0.0202]
[1751550785514,0.19007948,110480.0,110470.0,0.02850753]
[1751550786138,0.269764,110480.0,110470.0,0.02850753]
[1751550786782,0.39250093,110480.0,110470.0,0.02850753]
[1751550787003,0.76500093,110480.0,110470.0,0.02850753]
[1751550787209,0.62225948,110480.0,110470.0,0.0202]
[1751550787414,0.62225948,110480.0,110470.0,0.02850354]
[1751550788494,0.53007948,110480.0,110470.0,0.02850354]
[1751550788704,0.59095948,110480.0,110470.0,0.02850354]
[1751550788874,0.19007948,110480.0,110470.0,0.20954816]
[1751550789108,0.19007948,110480.0,110470.0,0.02850354]
[1751550789318,0.19007948,110480.0,110470.0,0.02950354]
[1751550789523,0.19007948,110480.0,110470.0,0.02903354]
[1751550789633,0.19007948,110480.0,110470.0,0.02803354]
[1751550789830,0.22317948,110480.0,110470.0,0.02903354]
[1751550790039,0.47117948,110480.0,110470.0,0.02903354]
[1751550790277,0.44057948,110480.0,110470.0,0.02803354]
[1751550790491,0.25295948,110480.0,110470.0,0.02803354]